bitfinex-derivatives/quotes_ETHF0:USTF0_20240915
["timestamp","ask_amount","ask_price","bid_price","bid_amount"]
[1726407144075,1.5877,2415.4,2415.3,1.6069001]
[1726407147384,1.5877,2415.4,2415.3,1.9964001]
[1726407147986,0.096,2415.9,2415.8,0.41383]
[1726407148189,1.182,2416.2,2415.8,10.72808615]
[1726407148385,1.182,2416.2,2416.1,1.07923453]
[1726407149288,1.182,2416.2,2416.0,1.07923453]
[1726407149488,1.182,2416.2,2416.1,1.07923453]
[1726407150294,1.182,2416.2,2416.0,1.07923453]
[1726407150985,2.372,2416.2,2416.0,1.07923453]
[1726407151296,2.372,2416.2,2415.9,2.0083518]
[1726407151297,5.3292,2416.1,2415.9,1.07923453]
[1726407151496,4.3978,2416.0,2415.6,0.45643453]
[1726407151784,3.2078,2415.7,2415.3,0.096]
[1726407151990,3.2078,2415.7,2415.1,0.112]
[1726407151991,1.19,2415.4,2415.1,0.096]
[1726407152179,1.19,2415.2,2415.0,6.0018218]
[1726407152385,1.19,2415.2,2415.1,1.6188518]
[1726407152990,1.19,2415.2,2415.0,6.0018218]
[1726407153191,1.19,2415.2,2415.1,1.6188518]
[1726407153904,2.58,2415.3,2415.1,1.6188518]
[1726407159207,0.3786,2415.2,2415.1,1.6188518]
[1726407159794,0.3786,2415.2,2415.0,6.54260685]
[1726407160508,0.3786,2415.2,2415.0,6.12864685]
[1726407160701,0.3786,2415.2,2415.1,1.61956142]
[1726407163629,4.93335,2415.2,2414.8,1.61956142]
[1726407163797,2.58,2415.0,2414.8,1.61956142]
[1726407165004,1.22547,2415.1,2414.8,1.61956142]
[1726407165005,3.3915,2415.1,2414.8,1.61956142]
[1726407165506,3.3915,2415.1,2414.7,1.61956142]
[1726407165710,3.3915,2415.1,2414.8,1.87103444]
[1726407166010,3.3915,2415.1,2414.7,1.61956142]
[1726407166207,3.3915,2415.1,2414.8,1.8709504]
[1726407166416,3.3915,2415.1,2414.7,1.61956142]
[1726407166710,3.3915,2415.1,2414.8,2.67475666]
[1726407166912,3.3915,2415.1,2414.8,0.8041]
[1726407169004,3.3915,2415.1,2414.8,2.42366142]
[1726407169204,3.3915,2415.1,2414.8,0.8041]
[1726407170212,3.3915,2415.1,2414.8,1.1914]
[1726407171916,3.3915,2415.1,2414.8,0.4123]
[1726407176015,1.19,2414.9,2414.8,0.4123]
[1726407176216,0.56866175,2414.9,2414.8,0.4123]
[1726407178413,0.8115,2415.1,2414.8,0.4123]
[1726407178414,2.0015,2415.1,2414.8,0.4123]
[1726407179120,2.0015,2415.1,2414.9,0.4054]
[1726407179713,1.5686,2415.2,2414.9,0.4054]
[1726407180010,1.5686,2415.2,2415.0,0.4021]
[1726407186914,1.9441,2415.2,2414.8,2.03186142]
[1726407187220,1.19,2415.0,2414.8,2.03186142]
[1726407187423,1.19,2414.9,2414.8,2.03186142]
[1726407187721,1.19,2414.9,2414.8,3.8989183]
[1726407188022,1.19,2414.9,2414.8,1.86705688]
[1726407188520,4.3978,2414.9,2414.8,1.86705688]
[1726407188710,4.3978,2414.9,2414.6,2.53594685]
[1726407188711,0.41401,2414.8,2414.6,1.61956142]
[1726407188909,0.41401,2414.8,2414.5,2.15964685]
[1726407188910,1.19,2414.7,2414.5,1.61956142]
[1726407189122,1.19,2414.7,2414.4,2.37966142]
[1726407189417,1.61451,2414.8,2414.5,6.63429216]
[1726407189619,1.61451,2414.8,2414.5,4.76640371]
[1726407190019,1.61451,2414.8,2414.5,6.38596513]
[1726407190221,1.61451,2414.8,2414.5,4.76640371]
[1726407190422,1.61451,2414.8,2414.4,2.37966142]
[1726407190624,1.19,2414.5,2414.4,2.37966142]
[1726407190824,1.19,2414.5,2414.4,4.24743623]
[1726407191030,1.19,2414.5,2414.3,2.53814685]
[1726407191031,1.19,2414.5,2414.3,1.61956142]
[1726407191222,1.6023,2414.4,2414.2,1.61956142]
[1726407191520,1.6023,2414.4,2414.3,1.86773633]
[1726407191719,1.6023,2414.4,2414.2,6.32889821]
[1726407191913,1.6023,2414.4,2414.2,1.61956142]
[1726407192130,1.6023,2414.4,2414.2,4.82736142]
[1726407193324,1.6023,2414.4,2414.2,3.2078]
[1726407193718,1.6023,2414.4,2414.2,4.82736142]
[1726407194140,1.6023,2414.4,2414.2,3.2078]
[1726407194341,1.6023,2414.4,2414.2,4.82736142]
[1726407196533,1.6023,2414.4,2414.3,1.86890077]
[1726407197319,1.6023,2414.4,2414.3,3.48846219]
[1726407198433,1.6023,2414.4,2414.3,3.48911644]
[1726407198822,1.6023,2414.4,2414.3,1.86955502]
[1726407199133,1.6023,2414.4,2414.1,2.81706142]
[1726407199428,1.19,2414.2,2414.1,2.81706142]
[1726407199636,1.19,2414.2,2414.1,3.48930846]
[1726407200018,1.19,2414.2,2414.0,1.61956142]
[1726407200215,0.3809,2414.1,2414.0,1.61956142]
[1726407200423,0.3809,2414.1,2414.0,3.48912916]
[1726407201521,0.3809,2414.1,2413.7,6.13486142]
[1726407201723,0.3809,2414.1,2413.8,1.86971888]
[1726407201925,0.3809,2414.1,2413.8,1.61956142]
[1726407201926,1.5709,2414.1,2413.8,1.61956142]
[1726407202119,1.5709,2414.1,2413.7,6.92296142]
[1726407202322,1.5709,2414.1,2413.8,1.86917228]
[1726407202626,1.5709,2414.1,2413.7,6.92296142]
[1726407202827,1.5709,2414.1,2413.8,1.86925064]
[1726407203130,1.5709,2414.1,2413.7,6.92296142]
[1726407203328,1.19,2413.9,2413.7,6.92296142]
[1726407203829,1.19,2413.8,2413.7,0.4028]
[1726407204827,1.19,2413.8,2413.6,3.2078]
[1726407205033,0.4142,2413.7,2413.6,3.2078]
[1726407208030,0.4142,2413.7,2413.4,1.60914]
[1726407209127,0.4142,2413.7,2413.6,3.2078]
[1726407211228,1.2041,2413.7,2413.6,3.2078]
[1726407211830,1.2041,2413.7,2413.4,1.1949]
[1726407212135,1.19,2413.5,2413.4,1.1949]
[1726407213830,1.19,2413.6,2413.4,1.1949]
[1726407216340,1.19,2413.6,2413.4,1.60914]
[1726407217235,1.19,2413.6,2413.4,1.1949]
[1726407219741,1.19,2413.5,2413.4,1.1949]
[1726407220137,1.19,2413.5,2413.3,3.2078]
[1726407220337,1.5886,2413.4,2413.3,3.2078]
[1726407220645,1.5886,2413.4,2413.2,0.4098]
[1726407222544,1.19,2413.5,2413.2,3.6176]
[1726407222747,1.5927,2413.6,2413.2,4.03187]
[1726407222951,1.19,2413.6,2413.2,4.03187]
[1726407223346,1.5877,2413.5,2413.2,4.03187]
[1726407224652,1.5877,2413.5,2413.2,3.6176]
[1726407225842,1.5877,2413.5,2413.2,4.03188]
[1726407227856,1.19,2413.6,2413.3,3.2078]
[1726407230347,0.4022,2413.7,2413.4,0.41424]
[1726407230551,1.5936,2413.8,2413.5,0.784]
[1726407230552,1.5908,2413.8,2413.5,0.784]
[1726407230760,1.19,2413.6,2413.5,1.1782]
[1726407236259,0.56832397,2413.6,2413.5,1.1782]
[1726407237157,0.4008,2413.8,2413.5,1.59243]
[1726407237354,1.5908,2413.8,2413.6,3.2078]
[1726407238256,1.19,2413.7,2413.6,3.2078]
[1726407241455,4.4938,2414.2,2413.6,8.541]
[1726407241668,1.5917,2414.1,2413.9,3.2078]
[1726407241965,1.19,2414.0,2413.9,0.7801]
[1726407242266,1.19,2414.0,2413.9,2.64737189]
[1726407242570,1.19,2414.0,2413.9,2.64773434]
[1726407242766,1.19,2414.0,2413.9,7.47369222]
[1726407245160,1.19,2414.0,2413.9,5.85553434]
[1726407245358,1.19,2414.0,2413.9,7.47822019]
[1726407245565,1.19,2414.0,2413.9,6.24783434]
[1726407246065,1.19,2414.0,2413.9,3.04003434]
[1726407246255,1.19,2414.0,2413.9,6.24783434]
[1726407246677,1.5917,2414.1,2413.9,12.14168156]
[1726407246864,1.5917,2414.1,2414.0,3.49016759]
[1726407247254,1.5917,2414.1,2414.0,1.86840099]
[1726407247458,1.5917,2414.1,2414.0,3.49097732]
[1726407248065,1.19,2414.2,2414.0,2.28254099]
[1726407248269,1.19,2414.2,2414.1,3.49099831]
[1726407251672,1.19,2414.2,2414.1,1.86840099]
[1726407251871,1.19,2414.2,2414.1,3.49099831]
[1726407252067,1.19,2414.2,2414.1,1.86695468]
[1726407252879,1.19,2414.2,2414.0,1.62259732]
[1726407253181,1.19,2414.1,2414.0,1.62259732]
[1726407253368,1.19,2414.1,2414.0,3.48931215]
[1726407256978,1.19,2414.1,2414.0,3.48855819]
[1726407259282,1.19,2414.1,2414.0,1.86596087]
[1726407259784,1.19,2414.1,2414.0,5.07376087]
[1726407259988,1.19,2414.1,2414.0,1.86596087]
[1726407260187,1.19,2414.1,2414.0,5.07376087]
[1726407261279,1.19,2414.1,2414.0,6.69635819]
[1726407263184,1.6049,2414.3,2414.0,6.69635819]
[1726407263382,1.6049,2414.3,2414.1,1.86596087]
[1726407263686,1.6049,2414.3,2414.1,1.62259732]
[1726407263985,1.6049,2414.3,2414.2,0.4052]
[1726407264181,0.4149,2414.3,2414.2,0.4052]
[1726407265188,1.19,2414.4,2414.2,0.4052]
[1726407270894,1.19,2414.4,2414.1,4.83039732]
[1726407271090,1.19,2414.4,2414.1,5.24239732]
[1726407271794,1.19,2414.4,2414.2,1.08003697]
[1726407279198,1.19,2414.4,2414.3,1.08003697]
[1726407280500,5.3316,2414.4,2414.3,1.08003697]
[1726407282708,1.19,2414.4,2414.3,1.08003697]
[1726407283097,1.19,2414.4,2414.3,2.94795512]
[1726407284300,1.19,2414.4,2414.3,3.49051547]
[1726407287201,1.19,2414.4,2414.3,4.02546199]
[1726407289400,0.096,2414.8,2414.3,21.28200308]
[1726407289605,0.096,2415.1,2414.8,0.414]
[1726407289803,1.2167,2415.2,2414.9,8.98240489]
[1726407289998,1.2167,2415.2,2415.1,1.62275303]
[1726407290202,1.2167,2415.2,2415.1,3.49067118]
[1726407290402,1.2167,2415.2,2415.1,1.08110275]
[1726407290706,2.4067,2415.2,2415.1,1.08110275]
[1726407291298,2.4067,2415.2,2415.0,1.62275303]
[1726407291299,2.4067,2415.2,2415.0,1.08110275]
[1726407291503,3.3038,2415.5,2415.1,2.27110275]
[1726407291697,0.096,2416.0,2415.1,2.27110275]
[1726407291698,0.4075,2415.6,2415.4,1.62275303]
[1726407292005,1.5975,2415.6,2415.5,3.48828429]
[1726407292407,1.5975,2415.6,2415.5,1.0787882]
[1726407292910,0.4075,2415.6,2415.4,4.6952882]
[1726407293101,0.4075,2415.6,2415.5,1.0787882]
[1726407293302,0.4075,2415.6,2415.5,3.2078]
[1726407293499,3.3038,2416.1,2415.5,3.2078]
[1726407293798,3.3038,2416.1,2415.7,1.0787882]
[1726407293799,1.19,2416.0,2415.7,1.0787882]
[1726407294206,1.19,2415.9,2415.6,1.0787882]
[1726407294514,1.19,2415.7,2415.6,1.0787882]
[1726407294903,1.19,2415.7,2415.6,2.94032057]
[1726407295398,1.19,2415.7,2415.5,4.2865882]
[1726407296105,0.5688706,2415.7,2415.5,4.2865882]
[1726407296306,0.5688706,2415.7,2415.5,3.2078]
[1726407297008,0.5688706,2415.7,2415.5,4.2865882]
[1726407297308,0.5688706,2415.7,2415.5,3.2078]
[1726407298510,0.5688706,2415.7,2415.4,0.8226]
[1726407298711,0.5688706,2415.7,2415.4,4.0304]
[1726407299519,1.19,2415.8,2415.4,4.0304]
[1726407300416,1.19,2415.8,2415.4,3.6165]
[1726407300617,1.19,2415.7,2415.4,3.6165]
[1726407303217,1.19,2415.7,2415.4,4.0304]
[1726407303620,1.19,2415.7,2415.4,3.6165]
[1726407304410,1.19,2415.5,2415.4,3.6165]
[1726407304711,1.19,2415.5,2415.3,0.4094]
[1726407304712,1.19,2415.5,2415.1,0.3818]
[1726407304910,1.597,2415.4,2415.1,0.3818]
[1726407305112,1.19,2415.2,2415.1,0.3818]
[1726407306219,4.3978,2415.6,2415.1,4.5226]
[1726407306420,4.3978,2415.6,2415.3,3.2078]
[1726407306421,1.19,2415.6,2415.3,3.2078]
[1726407306736,1.19,2415.5,2415.1,0.3818]
[1726407306926,2.0018,2415.5,2415.1,0.3818]
[1726407307119,2.0018,2415.5,2415.2,4.50047933]
[1726407309112,0.4096,2415.5,2415.2,4.50047933]
[1726407309321,0.7955,2415.8,2415.3,3.2078]
[1726407309521,0.7955,2415.8,2415.4,1.5943]
[1726407309522,1.5833,2415.8,2415.4,1.5943]
[1726407309722,1.5833,2415.8,2415.5,0.4116]
[1726407310226,3.9875,2416.0,2415.7,1.19]
[1726407310425,4.61376,2416.3,2415.9,3.2078]
[1726407310426,0.3767,2416.2,2415.9,3.2078]
[1726407310621,0.3767,2416.2,2416.0,0.4116]
[1726407311623,1.19,2416.1,2416.0,0.4116]
[1726407314720,0.3767,2416.2,2416.0,0.4116]
[1726407316326,1.5667,2416.2,2416.0,0.4116]
[1726407316531,6.11967,2416.2,2415.8,3.2078]
[1726407316737,1.19,2415.9,2415.6,0.382]
[1726407318131,0.4039,2415.8,2415.6,0.382]
[1726407323240,1.19,2416.0,2415.6,0.382]
[1726407323625,0.3795,2416.2,2415.8,4.3978]
[1726407323821,0.3795,2416.2,2415.9,0.759]
[1726407324020,0.3795,2416.2,2416.0,0.3888]
[1726407324631,1.5695,2416.2,2416.0,0.3888]
[1726407327135,1.5695,2416.2,2415.9,0.3808]
[1726407327443,0.3866,2416.1,2415.9,0.3808]
[1726407331640,1.5695,2416.2,2415.9,0.3808]
[1726407332640,1.19,2416.3,2415.9,0.3808]
[1726407339153,1.19,2416.3,2415.9,3.5886]
[1726407339746,1.19,2416.2,2415.9,3.5886]
[1726407339943,1.19,2416.3,2415.9,3.5886]
[1726407340641,1.19,2416.3,2416.0,1.0787882]
[1726407341940,1.19,2416.3,2416.1,0.3886]
[1726407343659,3.5877,2416.5,2416.2,1.19]
[1726407343861,3.5877,2416.5,2416.3,0.3947]
[1726407348459,3.5877,2416.5,2416.1,3.0333882]
[1726407348460,1.19,2416.4,2416.1,1.4673882]
[1726407348658,0.8081,2416.3,2416.1,1.4673882]
[1726407349951,0.8081,2416.3,2416.1,0.3886]
[1726407351659,0.8081,2416.3,2416.0,1.4571882]
[1726407353361,1.19,2416.1,2416.0,1.0787882]
[1726407353661,1.19,2416.1,2415.8,6.52775303]
[1726407353662,1.19,2416.1,2415.8,9.1915882]
[1726407353955,0.4113,2416.1,2415.9,1.0787882]
[1726407355563,0.4113,2416.1,2416.0,3.2078]
[1726407356259,0.4113,2416.1,2416.0,4.2865882]
[1726407356765,0.4113,2416.1,2416.0,3.2078]
[1726407357169,0.4113,2416.1,2416.0,4.2865882]
[1726407358168,0.4113,2416.1,2416.0,6.14810995]
[1726407359360,0.4113,2416.1,2416.0,5.06932175]
[1726407359659,0.4113,2416.1,2416.0,6.14871302]
[1726407359865,0.4113,2416.1,2416.0,5.06932175]
[1726407360166,0.4113,2416.1,2416.0,2.94089697]
[1726407360356,0.4113,2416.1,2416.0,6.14869697]
[1726407360552,0.4113,2416.1,2416.0,6.1487444]
[1726407361566,3.3038,2416.6,2416.0,18.43511221]
[1726407361764,0.3927,2416.6,2416.5,1.19]
[1726407361972,3.5932,2416.9,2416.5,4.3978]
[1726407362163,3.9859,2416.9,2416.6,0.3868]
[1726407362467,0.7781,2416.9,2416.6,0.3868]
[1726407363459,0.7781,2416.9,2416.4,0.784]
[1726407363460,1.19,2416.7,2416.4,0.784]
[1726407363659,0.4086,2416.6,2416.4,1.86299947]
[1726407364866,0.4086,2416.6,2416.4,0.784]
[1726407365266,0.4086,2416.6,2416.4,1.86299947]
[1726407365971,2.58,2416.8,2416.4,1.86299947]
[1726407366170,0.7781,2416.9,2416.5,10.92965324]
[1726407366370,0.7781,2416.9,2416.6,1.07899947]
[1726407366867,0.7781,2416.9,2416.7,0.38]
[1726407370970,1.19174,2416.9,2416.7,0.38]
[1726407371167,0.7781,2416.9,2416.7,0.38]
[1726407373670,1.19175,2416.9,2416.7,0.38]
[1726407374279,1.19175,2416.9,2416.5,4.28679947]
[1726407374474,1.19175,2416.9,2416.5,4.68909947]
[1726407375169,0.7781,2416.9,2416.5,5.10280947]
[1726407375977,1.19175,2416.9,2416.5,4.68909947]
[1726407379584,0.41366,2416.8,2416.5,4.68909947]
[1726407379787,1.19175,2416.9,2416.5,4.68909947]
[1726407380585,4.39955,2416.9,2416.5,4.68909947]
[1726407380786,3.9859,2416.9,2416.5,5.10280947]
[1726407381085,3.9859,2416.9,2416.5,4.68909947]
[1726407381086,3.6005,2416.9,2416.5,4.68909947]
[1726407381289,4.01415,2416.9,2416.5,4.68909947]
[1726407382902,4.01415,2416.9,2416.5,3.6101]
[1726407386297,4.01415,2416.9,2416.5,4.68909947]
[1726407387615,4.01415,2416.9,2416.6,4.72287572]
[1726407388495,4.01415,2416.9,2416.6,5.80187519]
[1726407388808,3.6005,2416.9,2416.6,5.80187519]
[1726407389288,4.01415,2416.9,2416.6,4.72287572]
[1726407391398,3.6005,2416.9,2416.6,4.72287572]
[1726407391602,4.01415,2416.9,2416.6,4.72287572]
[1726407391899,4.7905,2416.9,2416.6,4.72287572]
[1726407392104,5.20416,2416.9,2416.6,4.72287572]
[1726407392404,1.18386,2416.8,2416.6,4.72287572]
[1726407392803,0.7702,2416.8,2416.6,4.72287572]
[1726407396509,1.18386,2416.8,2416.6,4.72287572]
[1726407396707,0.7702,2416.8,2416.6,4.72287572]
[1726407397010,0.3927,2416.9,2416.6,6.21556519]
[1726407397508,0.80635,2416.9,2416.6,5.80187519]
[1726407403109,0.80635,2416.9,2416.7,1.07899947]
[1726407405127,0.41366,2416.8,2416.7,1.07899947]
[1726407405312,0.41366,2416.8,2416.7,2.93962932]
[1726407405313,0.3955,2416.8,2416.7,2.93962932]
[1726407405518,0.3955,2416.8,2416.7,1.07899947]
[1726407406310,0.80916,2416.8,2416.7,1.07899947]
[1726407406614,0.7807,2416.8,2416.7,1.07899947]
[1726407407114,1.19436,2416.8,2416.7,1.07899947]
[1726407407818,1.19436,2416.8,2416.7,2.94061328]
[1726407408322,1.19436,2416.8,2416.7,2.9409193]
[1726407409604,5.33196,2416.8,2416.7,2.9409193]
[1726407409809,12.1083,2416.8,2416.5,1.07930549]
[1726407410023,0.41371,2416.5,2416.4,1.07930549]
[1726407410416,0.41373,2416.4,2416.3,1.07930549]
[1726407410616,2.40653,2416.4,2416.3,1.07930549]
[1726407410914,2.40653,2416.4,2416.3,1.07983906]
[1726407410915,6.1312,2416.4,2416.3,1.07983906]
[1726407411220,6.1312,2416.4,2416.2,1.07984786]
[1726407411417,1.9928,2416.4,2416.2,1.07984786]
[1726407411616,0.41375,2416.3,2416.2,1.07984786]
[1726407411809,0.41375,2416.3,2416.2,2.9417137]
[1726407412013,0.41375,2416.3,2416.2,2.9417236]
[1726407412419,0.41375,2416.3,2416.2,1.07984786]
[1726407413113,1.21654,2416.4,2416.2,1.48934786]
[1726407413316,1.21654,2416.4,2416.2,1.89304786]
[1726407414114,0.41374,2416.4,2416.2,1.89304786]
[1726407420024,0.41374,2416.4,2416.2,0.8132]
[1726407420221,1.60374,2416.4,2416.2,0.8132]
[1726407421226,0.41375,2416.3,2416.2,0.8132]
[1726407423223,1.19,2416.4,2416.2,0.8132]
[1726407423414,0.41375,2416.3,2416.2,0.8132]
[1726407428521,1.60374,2416.4,2416.2,0.8132]
[1726407430127,0.41373,2416.4,2416.2,0.8132]
[1726407430331,1.60373,2416.4,2416.2,0.8132]
[1726407434227,1.60375,2416.3,2416.0,4.68214786]
[1726407434428,0.81517,2416.2,2416.0,1.87084786]
[1726407434626,1.19,2416.1,2416.0,1.87084786]
[1726407434931,1.19,2416.1,2415.9,0.4113]
[1726407434932,1.60378,2416.1,2415.9,0.4113]
[1726407435231,1.19,2416.0,2415.9,0.4113]
[1726407436327,1.19,2416.1,2415.9,0.4113]
[1726407437642,1.60378,2416.1,2415.8,1.47634786]
[1726407437831,1.60378,2416.1,2415.8,1.87584786]
[1726407440543,0.4138,2416.0,2415.8,1.87584786]
[1726407440934,1.5873,2415.9,2415.8,1.07984786]
[1726407441645,2.00112,2415.9,2415.8,1.07984786]
[1726407442644,2.00112,2415.9,2415.7,1.47794786]
[1726407442947,2.00112,2415.9,2415.7,0.3981]
[1726407442948,1.5708,2415.8,2415.7,0.3981]
[1726407443443,1.98463,2415.8,2415.6,0.7809]
[1726407443644,2.38713,2415.8,2415.6,0.7809]
[1726407444846,2.38714,2415.8,2415.6,0.7809]
[1726407445840,0.7833,2415.8,2415.6,0.7809]
[1726407446041,0.3973,2415.9,2415.6,5.06854786]
[1726407446233,0.81112,2415.9,2415.6,5.06854786]
[1726407447647,0.41384,2415.8,2415.6,5.06854786]
[1726407447942,1.60384,2415.8,2415.6,3.9887]
[1726407448345,1.60384,2415.8,2415.6,1.86074786]
[1726407448742,1.60384,2415.8,2415.5,1.48324786]
[1726407448950,1.9927,2415.7,2415.5,1.48324786]
[1726407449245,2.40655,2415.7,2415.5,1.48324786]
[1726407449442,0.406,2415.6,2415.5,1.48324786]
[1726407449945,2.40655,2415.7,2415.5,1.48324786]
[1726407450242,1.9927,2415.7,2415.5,1.48324786]
[1726407450832,0.4056,2415.7,2415.5,1.48324786]
[1726407451033,1.19,2415.8,2415.5,1.48324786]
[1726407451251,1.19,2415.8,2415.6,1.07984786]
[1726407451459,1.19,2415.8,2415.7,0.3917]
[1726407451742,0.3971,2416.0,2415.7,0.3917]
[1726407451949,1.5871,2416.0,2415.7,0.802]
[1726407452246,2.00091,2416.0,2415.7,0.802]
[1726407452640,1.19,2415.8,2415.7,0.802]
[1726407453033,1.5897,2415.8,2415.7,0.802]
[1726407453234,1.5897,2415.8,2415.7,0.4103]
[1726407453437,2.00353,2415.8,2415.7,0.4103]
[1726407453641,0.41385,2415.7,2415.5,1.87034786]
[1726407453840,0.41385,2415.7,2415.5,2.26424786]
[1726407453841,0.41387,2415.6,2415.5,2.26424786]
[1726407454040,0.41387,2415.6,2415.5,1.1844]
[1726407454241,2.01066,2415.7,2415.5,2.26424786]
[1726407454442,0.82067,2415.6,2415.5,1.87714786]
[1726407454640,0.82067,2415.6,2415.5,0.3939]
[1726407456050,0.4068,2415.6,2415.5,0.3939]
[1726407456237,1.5968,2415.7,2415.5,1.47374786]
[1726407456457,0.4068,2415.7,2415.5,1.47374786]
[1726407456949,0.82065,2415.7,2415.5,0.3939]
[1726407459144,0.41387,2415.6,2415.5,0.3939]
[1726407459346,0.82066,2415.7,2415.5,0.3939]
[1726407461044,4.3978,2415.9,2415.5,0.3939]
[1726407461242,4.3978,2415.9,2415.5,1.47374786]
[1726407461650,4.81162,2415.9,2415.5,1.47374786]
[1726407463554,4.81162,2415.9,2415.5,0.3939]
[1726407463754,1.19,2415.7,2415.5,1.47374786]
[1726407463945,1.60385,2415.7,2415.5,0.3939]
[1726407464153,2.01865,2415.7,2415.5,0.3939]
[1726407465147,1.19,2415.7,2415.5,0.3939]
[1726407465752,3.2078,2416.0,2415.5,1.47374786]
[1726407465951,3.2078,2416.0,2415.6,6.55811969]
[1726407465952,1.19,2416.0,2415.6,6.55811969]
[1726407466161,1.19,2416.0,2415.7,0.7737]
[1726407466654,1.19,2416.0,2415.8,0.4011]
[1726407468652,1.19,2415.9,2415.8,0.4011]
[1726407472367,1.19,2415.9,2415.8,1.48094786]
[1726407475062,1.19,2415.9,2415.8,1.07984786]
[1726407475466,1.5718,2415.9,2415.8,1.07984786]
[1726407477464,1.5718,2415.9,2415.8,2.93824392]
[1726407478464,1.5718,2415.9,2415.8,2.9385116]
[1726407479771,1.5718,2415.9,2415.8,1.85866374]
[1726407480073,1.5718,2415.9,2415.8,2.93749846]
[1726407480368,1.5718,2415.9,2415.8,1.85866374]
[1726407480561,1.5718,2415.9,2415.8,3.48141677]
[1726407480957,1.5718,2415.9,2415.8,1.85866374]
[1726407481162,1.5718,2415.9,2415.8,3.48141677]
[1726407481662,1.5718,2415.9,2415.8,1.62275303]
[1726407481866,1.5718,2415.9,2415.8,3.48155855]
[1726407482968,3.2078,2416.3,2415.8,4.67155855]
[1726407483170,1.61642,2416.5,2416.1,1.07891662]
[1726407483377,1.19,2416.4,2416.2,0.784]
[1726407483577,1.19,2416.4,2416.2,1.1602]
[1726407483976,1.19,2416.4,2416.2,2.23911662]
[1726407486466,1.19,2416.3,2416.2,2.23911662]
[1726407486976,1.19,2416.3,2416.2,1.1602]
[1726407488675,1.19,2416.3,2416.1,1.07891662]
[1726407488978,0.3769,2416.2,2416.1,1.07891662]
[1726407493384,0.3769,2416.2,2416.0,0.8103]
[1726407493385,0.3769,2416.2,2416.0,1.88921662]
[1726407493675,0.3769,2416.2,2416.1,1.07891662]
[1726407494372,0.3769,2416.2,2416.0,1.88921662]
[1726407494576,1.19,2416.3,2416.0,1.88921662]
[1726407494771,4.42572,2416.5,2416.1,1.07891662]
[1726407494977,1.19,2416.3,2416.1,1.07891662]
[1726407495569,0.4125,2416.6,2416.2,7.3462]
[1726407495766,1.19,2416.7,2416.3,4.13923593]
[1726407495967,0.4111,2416.8,2416.4,3.74875352]
[1726407496166,4.04691999,2416.9,2416.4,3.74875352]
[1726407496167,5.14090999,2416.9,2416.5,4.28671662]
[1726407496368,1.19,2416.7,2416.5,4.28671662]
[1726407497482,1.19,2416.7,2416.5,3.2078]
[1726407500490,1.5832,2416.7,2416.5,3.2078]
[1726407501191,1.19,2416.6,2416.5,3.2078]
[1726407511192,0.82478,2416.8,2416.5,3.2078]
[1726407511193,3.2078,2416.9,2416.5,8.5362]
[1726407511392,4.3978,2416.9,2416.5,5.89041662]
[1726407511599,1.5883,2416.9,2416.5,4.28671662]
[1726407511797,0.4018,2416.8,2416.5,4.28671662]
[1726407512200,1.19,2416.7,2416.5,4.28671662]
[1726407512396,1.19,2416.7,2416.5,3.2078]
[1726407513295,1.19,2416.6,2416.5,3.2078]
[1726407515006,1.19,2416.7,2416.5,3.2078]
[1726407516203,1.19,2416.7,2416.5,4.28671662]
[1726407517107,1.19,2416.7,2416.4,1.47951662]
[1726407517908,1.19,2416.7,2416.4,1.89324662]
[1726407520200,1.19,2416.7,2416.5,5.62096824]
[1726407521607,1.19,2416.7,2416.5,8.82876824]
[1726407523510,1.19,2416.7,2416.5,5.62096824]
[1726407527623,1.19,2416.7,2416.6,1.07891662]
[1726407532429,2.40465,2416.9,2416.6,1.07891662]
[1726407532928,2.40465,2416.9,2416.7,0.386]
[1726407533221,2.40465,2416.9,2416.7,1.87041662]
[1726407533222,1.991,2416.9,2416.7,1.87041662]
[1726407533426,0.801,2416.9,2416.7,2.26271662]
[1726407536518,0.801,2416.9,2416.8,1.07891662]
[1726407537319,1.991,2416.9,2416.8,1.07891662]
[1726407540222,1.991,2416.9,2416.8,2.9374602]
[1726407540429,1.991,2416.9,2416.8,1.85854358]
[1726407540621,1.991,2416.9,2416.8,2.93755252]
[1726407541523,1.991,2416.9,2416.8,3.48129661]
[1726407542925,1.991,2416.9,2416.8,3.4824498]
[1726407543522,1.991,2416.9,2416.8,1.62275303]
[1726407543523,2.40464,2416.9,2416.8,1.62275303]
[1726407543729,2.40464,2416.9,2416.8,3.482282]
[1726407544027,2.40464,2416.9,2416.8,2.93887979]
[1726407544929,2.40464,2416.9,2416.8,2.93886422]
[1726407545724,2.40464,2416.9,2416.8,1.07933525]
[1726407546424,6.54224,2416.9,2416.8,2.93894514]
[1726407547536,6.54224,2416.9,2416.8,2.93901125]
[1726407547830,6.54224,2416.9,2416.8,1.07933525]
[1726407548232,2.40464,2416.9,2416.8,1.07933525]
[1726407548421,6.54224,2416.9,2416.8,1.07933525]
[1726407548621,6.54224,2416.9,2416.6,1.62275303]
[1726407548622,0.41366,2416.8,2416.6,1.62275303]
[1726407548823,0.41366,2416.8,2416.7,3.48267871]
[1726407550126,0.41366,2416.8,2416.7,2.9395146]
[1726407550936,2.40465,2416.9,2416.7,2.9395146]
[1726407551129,2.40465,2416.9,2416.7,1.07958892]
[1726407551321,0.41366,2416.8,2416.7,1.07958892]
[1726407551520,0.41366,2416.8,2416.7,2.93973581]
[1726407552134,0.41366,2416.8,2416.7,2.93972739]
[1726407552336,0.41366,2416.8,2416.7,2.93967659]
[1726407552535,0.41366,2416.8,2416.7,2.93971452]